Cogmind - Beta 14 *** ADVENTURER MODE // 2025.03.19 @ 18:50:35 Player: crsstev Result: Destroyed by G-47 Trooper with Particle Gun Performance ------------- Evolutions (0) 0 Regions Visited (1) 200 Robots Destroyed (10) 50 Value Destroyed (320) 320 Prototype IDs (3) 60 Alien Tech Used (0) 0 Bonus (0) 0 TOTAL SCORE: 630 Bonus ------- None Cogmind --------- Core Integrity 0/250 Matter 290/300 Energy 100/100 System Corruption 1% Temperature Cool (9) Movement Core (750) Ox14 Location -10/Materials Parts ------- > --- POWER (1) -------- (None) > --- PROPULSION (2) --- (None) > --- UTILITY (2) ------ High-capacity Storage Unit Terrain Scanner > --- WEAPON (2) ------- Beam Rifle > --- INVENTORY (20) --- Small Matter Pod (50) Rocket Launcher Peak State ------------ > --- POWER ------------ Light Ion Engine > --- PROPULSION ------- Wheel Wheel > --- UTILITY ---------- High-capacity Storage Unit > --- WEAPON ----------- Beam Rifle Beam Rifle > --- INVENTORY -------- Shield Generator Rocket Launcher [Rating: 8] Favorites ----------- Power Light Ion Engine Engine Light Ion Engine Propulsion Wheel Wheel Wheel Utility High-capacity Storage Unit Device Terrain Scanner Storage High-capacity Storage Unit Weapon Beam Rifle Energy Gun Beam Rifle Special Melee Weapon Datajack Build | -11 -10 ------- Run | Yrd Mat Slots Evolved . | . . Power . | . . Propulsion . | . . Utility . | . . Weapon . | . . Parts Attached 12 | 5 7 Power 1 | 1 . Engine 1 | 1 . Core . | . . Reactor . | . . Propulsion 2 | 2 . Treads . | . . Leg . | . . Wheel 2 | 2 . Hover . | . . Flight . | . . Utility 3 | . 3 Device 1 | . 1 Storage 2 | . 2 Processor . | . . Hackware . | . . Protection . | . . Artifact . | . . Weapon 6 | 2 4 Energy Gun 5 | 2 3 Energy Cannon . | . . Ballistic Gun . | . . Ballistic Cannon . | . . Launcher . | . . Special Weapon . | . . Impact Weapon . | . . Slashing Weapon . | . . Piercing Weapon . | . . Special Melee Weapon 1 | . 1 Unidentified Prototypes . | . . Parts Lost 5 | . 5 Power 1 | . 1 Propulsion 2 | . 2 Utility . | . . Weapon 2 | . 2 Highest Loss Streak 4 | . 4 To Critical Strikes . | . . Average Slot Usage (%) 56 | . 56 Engine 6 | . 6 Wheel 14 | . 14 Storage 13 | . 13 Energy Gun 17 | . 17 Special Melee Weapon 3 | . 3 Peak Build Rating 8 | 5 8 Average Rating 4 | 3 4 On Entrance 2 | . 5 Naked Turns . | . . Heaviest Build 49 | 7 49 Greatest Support 20 | 20 20 Greatest Overweight (x) 14 | . 14 Average Overweight (x) 2 | . 3 Largest Inventory Capacity 20 | 5 20 Average Capacity 17 | 5 19 Most Carried 4 | 2 4 Average Carried 2 | . 2 Final Capacity 20 | 5 20 Final Carried 2 | . 2 Class Distribution -------------------- 100% | Mutant Dominant Class ---------------- Mutant | -10/Materials Resources | -11 -10 ----------- Run | Yrd Mat Matter Collected 345 | 250 95 Remotely . | . . Salvage Created 392 | 43 349 Parts 20 | 2 18 Haulers Intercepted . | . . Recyclers Shooed . | . . Parts Field Recycled . | . . Retrieved Matter . | . . Parts Self-Destructed . | . . Prevented . | . . Kills | -11 -10 ------- Run | Yrd Mat Combat Hostiles Destroyed 9 | 1 8 Guns 7 | 1 6 Classes Destroyed 2 | 1 1 Worker 1 | . 1 Grunt 9 | 1 8 Best Kill Streak 6 | 1 6 Combat Bots Only 5 | 1 5 Max Kills in Single Turn 1 | 1 1 Gunslinging . | . . Exploded . | . . Melee . | . . Uniques/NPCs Destroyed . | . . Combat | -11 -10 -------- Run | Yrd Mat Hostile Shots Fired 83 | 5 78 Missed 23 | 2 21 Damage Taken 576 | 26 550 Core 253 | . 253 Absorbed by Shields . | . . Ignored by Resistances 175 | 8 167 Core Remaining (%) 100 | 100 . Volleys Fired 42 | 3 39 Largest 2 | 2 2 Hottest 112 | 100 112 Shots Fired 47 | 6 41 Gun 47 | 6 41 Cannon . | . . Launcher . | . . Special . | . . Kinetic . | . . Thermal 47 | 6 41 Explosive . | . . Electromagnetic . | . . Robot Hit Streak 33 | 4 33 Robot Miss Streak 1 | 1 1 Penetration Max . | . . Secondary Targets . | . . Shots Hit Robots 42 | 4 38 Core Hits 16 | 2 14 Critical Kills . | . . Critical Parts Destroyed . | . . Critical Strikes 6 | . 6 Burn 6 | . 6 Melee Attacks . | . . Impact . | . . Slashing . | . . Piercing . | . . Sneak Attacks . | . . Combat Hostiles . | . . Follow-up Attacks . | . . Damage Inflicted 600 | 51 549 Guns 600 | 51 549 Cannons . | . . Explosions . | . . Melee . | . . Ramming . | . . Kinetic . | . . Thermal 600 | 51 549 Explosive . | . . Electromagnetic . | . . Impact . | . . Slashing . | . . Piercing . | . . Highest Corruption 1 | . 1 Average Corruption 1 | . 1 Corruption Purged . | . . Corruption Blocked . | . . Effects 3 | . 3 Message Errors 1 | . 1 Data Loss (minor) 1 | . 1 Misfires 1 | . 1 Overload Shots . | . . Overflow Damage . | . . Projectiles . | . . Explosions . | . . Melee . | . . Knockbacks . | . . Impact . | . . Kinetic . | . . Secondary . | . . Self-Inflicted Damage . | . . Shots . | . . Rammed . | . . Targets Rammed . | . . Kicked . | . . Crushed . | . . Highest Temperature 367 | 129 367 Average Temperature 124 | 66 133 Received Heat Transfer 423 | 18 405 Effects 2 | . 2 Energy Bleed 1 | . 1 Damage (minor) 1 | . 1 Siege Activations . | . . Robots Corrupted . | . . Combat Hostiles . | . . Parts Fried . | . . Impact Corruptions . | . . Robots Melted 2 | . 2 Combat Hostiles 2 | . 2 Parts Melted 7 | 1 6 Heat Transferred 1998 | 148 1850 Parts Sabotaged . | . . Parts Stolen . | . . Parts Stripped . | . . Power Chain Reactions . | . . Alert | -11 -10 ------- Run | Yrd Mat Peak Influence 277 | 20 277 Initial 11 | . 11 Average 127 | 2 148 Maximum Alert Level 1 | . 1 Low Security (%) 59 | 100 52 Level 1 40 | . 47 Level 2 . | . . Level 3 . | . . Level 4 . | . . Level 5 . | . . High Security . | . . Max Security . | . . Squads Dispatched 2 | . 2 Investigation 2 | . 2 Extermination . | . . Reinforcement . | . . Assault . | . . Garrison . | . . Intercept . | . . Searches Triggered . | . . Construction Impeded . | . . Haulers Reinforced . | . . Active Scanning Responses . | . . Cargo Convoy Interrupts . | . . Stealth | -11 -10 --------- Run | Yrd Mat Distress Signals 2 | . 2 Communications Jammed . | . . Distress Signals . | . . Times Spotted 19 | 1 18 Peak Tracking Total 5 | 1 5 Tactical Retreats 3 | . 3 Traps | -11 -10 ------- Run | Yrd Mat Traps Triggered . | . . Indirectly . | . . Trap Hack Attempts . | . . Triggered . | . . Disarmed . | . . Reprogrammed . | . . Reused . | . . Traps Extracted . | . . Installed . | . . Triggered . | . . Machines | -11 -10 ---------- Run | Yrd Mat Machines Disabled . | . . Max in Single Turn . | . . Machines Repaired . | . . Machines Dismantled . | . . Machines Sabotaged . | . . Overloaded Fab Kills . | . . Hacking | -11 -10 --------- Run | Yrd Mat Machines Accessed 3 | . 3 Terminals 2 | . 2 Fabricators . | . . Repair Stations . | . . Recycling Units 1 | . 1 Scanalyzers . | . . Garrison Access . | . . Total Hacks 9 | . 9 Successful 6 | . 6 Failed 3 | . 3 Catastrophic . | . . Database Lockouts . | . . Manual . | . . Terminals 6 | . 6 Fabricators . | . . Repair Stations . | . . Recycling Units 3 | . 3 Scanalyzers . | . . Garrison Access . | . . Terminal Hacks 3 | . 3 Prototype ID Bank 1 | . 1 Hauler Manifests 1 | . 1 Zone Layout 1 | . 1 Fabricator Hacks . | . . Repair Station Hacks . | . . Recycling Unit Hacks 3 | . 3 Recycle Component 1 | . 1 Process 1 | . 1 Report Inventory 1 | . 1 Scanalyzer . | . . Garrison Access Hacks . | . . Unauthorized Hacks . | . . Terminals . | . . Fabricators . | . . Repair Stations . | . . Recycling Units . | . . Scanalyzers . | . . Garrison Access . | . . Data Cores Recovered . | . . Used . | . . Hacking Detections 2 | . 2 Full Trace Events 2 | . 2 Feedback Events 1 | . 1 Corruption 1 | . 1 Feedback Blocked . | . . Robot Schematics Acquired . | . . Robots Built . | . . Authchips . | . . Time . | . . Total Robot Build Rating . | . . Part Schematics Acquired . | . . Parts Built . | . . Authchips . | . . Time . | . . Total Part Build Rating . | . . Parts Repaired . | . . Time . | . . Parts Recycled 1 | . 1 Recycled Matter 80 | . 80 Retrieved Matter . | . . Retrieved Components . | . . Parts Scanalyzed . | . . Part Schematics Acquired . | . . Parts Damaged . | . . Bothacking | -11 -10 ------------ Run | Yrd Mat Used RIF Installer . | . . Robots Hacked . | . . Non-combat . | . . Combat . | . . Robot Hacks Applied . | . . Relay Couplers Released . | . . Fabnet Peak Effective % . | . . Robots Rewired . | . . Allies Hacked . | . . Hacks Repelled . | . . Allies | -11 -10 -------- Run | Yrd Mat Total Allies . | . . Largest Group . | . . Highest-Rated Group . | . . Highest-Rated Ally . | . . Total Orders . | . . Ally Attacks . | . . Total Damage . | . . Kills . | . . Allies Corrupted . | . . Allies Melted . | . . Intel | -11 -10 ------- Run | Yrd Mat Robot Analysis Total . | . . Derelict Logs Recovered . | . . Drone Launches . | . . Drone Recoveries . | . . Exploration | -11 -10 ------------- Run | Yrd Mat Turns Passed 475 | 67 408 Spaces Moved 231 | 67 164 Core 45 | 23 22 Treads . | . . Legs . | . . Wheels 186 | 44 142 Hover . | . . Flight . | . . Fastest Speed 50 | 50 80 Average Speed 157 | 69 193 Slowest Speed 750 | 80 750 Overloaded Moves . | . . Propulsion Burnouts . | . . Robots Hopped . | . . Cave-ins Triggered . | . . Exploration Rate (%) 16 | 7 25 Regions Visited 1 Branch Regions . Pre-discovered Areas . | . . Known Exits Taken . | . . Unknown Exits Taken 1 | 1 . Scrap Searched . | . . Spaces Dug . | . . Terrain Destroyed . | . . Melee . | . . Projectile . | . . AOE . | . . Terrain Rammed . | . . Walls Destroyed . | . . Machines Disabled . | . . Actions | -11 -10 --------- Run | Yrd Mat Total 304 | 81 223 Wait . | . . Move 230 | 66 164 Hop . | . . Pick Up 15 | 6 9 Fast Attach . | . . Attach 12 | 5 7 Detach 1 | . 1 Swap . | . . Drop 4 | 1 3 Fire 42 | 3 39 Melee . | . . Ram . | . . Kick . | . . Crush . | . . Escape Stasis . | . . Rewire . | . . Trap . | . . Miscellaneous . | . . Route ------- -11/Scrapyard -10/Materials History --------- Turn | Location | Event 2 | -11/Scrapyard | Met Revision 17 45 | -11/Scrapyard | Discovered new exit (range 8) 68 | -11/Scrapyard | Entered Materials 309 | -10/Materials | Lost 4 parts (1p2n1w) 315 | -10/Materials | Build established: Mutant 322 | -10/Materials | Core integrity fell below 50% 358 | -10/Materials | Core integrity fell below 20% 476 | -10/Materials | Destroyed by G-47 Trooper with Particle Gun Last Messages --------------- G-34 Mercenary heat damages core (-6). G-34 Mercenary overheating. G-34 Mercenary heat damages Aluminum Leg, Sml. Laser, Aluminum Leg, Heat Sink. Destroyed Sml. Laser. R-06 Scavenger collects Sml. Laser. G-34 Mercenary heat damages core (-4). G-34 Mercenary overheating. Heat Sink melted. G-34 Mercenary destroyed. K-01 Serf collects debris. R-06 Scavenger collects Aluminum Leg. R-06 Scavenger collects Lgt. Ion Engine. G-47 Trooper destroyed. R-06 Scavenger collects Aluminum Leg. K-01 Serf collects debris. R-06 Scavenger collects Aluminum Leg. #Y2PG|ZATZ#GBEGYRO:6EAL4SY RC:WQH< Acquired Terrain Scanner. [Achievement: First Step to Greatness] Map ----- +----------------------------------------------------+ | ?????????????????????????????????????????????????? | | ?????????????????????????????????????????????????? | | ?????????????????????????????????????????????????? | | ?????????????????????????????????????????????????? | | ?????????????????????????????????????????????????? | | ?????????????????????????????????????????????????? | | ????????????????????????????????????#????????????? | | ???????????????????????????????????? ????????????? | | ???????????????????????????????????? ????????????? | | ?????????????????????????????????? ????????????? | | ??????????????????????????????????"" ????????????? | | ????????????????????#?????????????"" ????????????? | | ????????????????????#?????????????"" #########???? | | ???????????????? ????#????#??????? # #???? | | ?????????????????? ??????????????? # #???? | | ??????????????????????????????????#+## ""T"" #???? | | ??????????????? ????#?????????????# ## """"" #???? | | ?????????????????????????????######*## #???? | | ????????????????# ########## %=##%#####+######## | | ????????????????# *%!= | | ??????????????????########+### %%###### # | | ???????????????????# ##*##????# # | | ???????????????????# ##=#?????########## # | | ???????????????????# + #??????????????# # | | ???????????????????# # #??????????????# # | | ???????????????????###+##@#### ######?######### # | | ???????????????????? g ?+ # # | | ?????????????????? g # [// # # | | ???????????????? [[! # [/ # # | | ??????????????? [!= + [ # # | | ????????????????### [! ########## # | | ??????????????????# #????????# """ + | | ??????????????????# +????????# """ # | | ?????????????????## ###########????????# """ ### | | ??????????????????# ???????????????????# #?? | | ??????????????????# ???????????????????# "Y" #?? | | ????????????????????????????? ?????????# """ #?? | | ???????????????????????????????????????#########?? | | ?????????????????????????????????????????????????? | | ?????????????????????????????????????????????????? | | ?????????????????????????????????????????????????? | | ?????????????????????????????????????????????????? | | ?????????????????????????????????????????????????? | | ?????????????????????????????????????????????????? | | ?????????????????????????????????????????????????? | | ?????????????????????????????????????????????????? | | ?????????????????????????????????????????????????? | | ?????????????????????????????????????????????????? | | ?????????????????????????????????????????????????? | | ?????????????????????????????????????????????????? | +----------------------------------------------------+ Best States ------------- Heat Dissipation 25 Energy Generation 10 Energy Capacity 125 Matter Stores 300 Matter Capacity 300 Sight Range 16 Terrain Scan Range 14 Terrain Scan Density 10 Resistance: KI 20 Resistance: TH 20 Resistance: EX 20 Resistance: EM 20 Resistance: I 20 Resistance: S 20 Resistance: P 20 Evasion (%) 50 Offensive Hacking 10 Item Schematics ----------------- None Robot Schematics ------------------ None Fabricated ------------ Nothing Alien Tech Used ----------------- None Achievements -------------- First Step to Greatness It's Just You Challenges ------------ None Game ------ Seed VampiricHoverUnit Manual? 0 Play Time 00:13:53 Cumulative 1.3 hours Start 2025.03.19 @ 18:33:37 End 2025.03.19 @ 18:50:35 Sessions 1 Manual Loads 0 Difficulty Adventurer Special Mode None Game No. 2 Rogue 0 Adventurer 2 Explorer 0 Win Type - Total 0 Types 0/0/0/0/0/0/0/0/0 Lore% 2 Gallery% 3 Achievement% 4 Wizard Run 0 Options --------- Layout 0 ASCII 0 Keyboard 0 Movement Mouse Keybinds 0 Fullscreen 2 Font 24/Smallcaps Map View 76x50 Zoom Use 0% Tactical HUD 0 Map Filters NONE Filters NONE Steam 1 RUN: bc03b24d-6ff9-4b4a-8d1d-8e1f60cf6ced